bitfinex/quotes_BTCUSD_20221001
["timestamp","ask_amount","ask_price","bid_price","bid_amount"]
[1664587248470,0.63069136,19386.0,19385.0,0.55383504]
[1664587248471,0.27312036,19386.0,19385.0,0.55383504]
[1664587248696,0.16490924,19386.0,19385.0,0.55383504]
[1664587248937,0.04558697,19386.0,19385.0,0.55383504]
[1664587249888,0.12458697,19386.0,19385.0,0.55383504]
[1664587250143,0.12458697,19386.0,19385.0,0.49407779]
[1664587250373,0.12458697,19386.0,19385.0,0.18320679]
[1664587250600,0.48215797,19386.0,19385.0,0.05424179]
[1664587251054,0.40315797,19386.0,19385.0,0.05424179]
[1664587251286,0.40315797,19386.0,19385.0,0.00087185]
[1664587251511,0.04558697,19386.0,19385.0,0.00087185]
[1664587251732,0.48215797,19386.0,19385.0,0.00087185]
[1664587252468,0.12458697,19386.0,19385.0,0.00087185]
[1664587252683,0.16490924,19386.0,19385.0,0.00087185]
[1664587252898,0.44348024,19386.0,19385.0,0.00087185]
[1664587253840,0.16490924,19386.0,19385.0,0.00087185]
[1664587254080,0.52248024,19386.0,19385.0,0.00087185]
[1664587254760,0.48215797,19386.0,19385.0,0.00087185]
[1664587254991,0.04558697,19386.0,19385.0,0.00087185]
[1664587255212,0.40315797,19386.0,19385.0,0.00087185]
[1664587255920,0.12458697,19386.0,19385.0,0.00087185]
[1664587256136,0.48215797,19386.0,19385.0,0.00087185]
[1664587257046,0.40315797,19386.0,19385.0,0.00087185]
[1664587257775,0.48215797,19386.0,19385.0,0.00087185]
[1664587258001,0.12458697,19386.0,19385.0,0.12983685]
[1664587258670,0.48215797,19386.0,19385.0,0.12983685]
[1664587258910,0.12458697,19386.0,19385.0,0.23603685]
[1664587259138,0.04558697,19386.0,19385.0,0.59240501]
[1664587259883,0.12458697,19386.0,19385.0,0.59240501]
[1664587260334,0.12458697,19386.0,19385.0,0.49396785]
[1664587260989,0.04558697,19386.0,19385.0,0.44102785]
[1664587261210,0.40315797,19386.0,19385.0,0.44102785]
[1664587261426,0.75938602,19386.0,19385.0,0.44102785]
[1664587261901,0.83838602,19386.0,19385.0,0.44102785]
[1664587262521,0.48081502,19386.0,19385.0,0.44102785]
[1664587263200,0.40181502,19386.0,19385.0,0.44102785]
[1664587263444,0.75938602,19386.0,19385.0,0.44102785]
[1664587263856,0.83838602,19386.0,19385.0,0.44102785]
[1664587264418,0.48081502,19386.0,19385.0,0.44102785]
[1664587264634,0.48081502,19386.0,19385.0,0.39102785]
[1664587265078,0.40181502,19386.0,19385.0,0.39102785]
[1664587265959,0.83838602,19386.0,19385.0,0.39102785]
[1664587266410,0.48081502,19386.0,19385.0,0.39102785]
[1664587267007,0.40181502,19386.0,19385.0,0.39102785]
[1664587267843,0.48081502,19386.0,19385.0,0.38602785]
[1664587268270,0.52046302,19386.0,19385.0,0.38602785]
[1664587268990,0.44146302,19386.0,19385.0,0.38602785]
[1664587269451,0.44146302,19386.0,19385.0,0.52525821]
[1664587269863,0.52046302,19386.0,19385.0,0.52525821]
[1664587271185,0.44146302,19386.0,19385.0,0.52525821]
[1664587271328,0.40181502,19386.0,19385.0,0.38602785]
[1664587272031,0.48081502,19386.0,19385.0,0.38602785]
[1664587273221,0.40181502,19386.0,19385.0,0.38602785]
[1664587273812,0.83838602,19386.0,19385.0,0.38602785]
[1664587274021,0.12458697,19386.0,19385.0,0.38602785]
[1664587274235,0.12458697,19386.0,19385.0,0.95188985]
[1664587275107,0.04558697,19386.0,19385.0,0.95188985]
[1664587275479,0.04558697,19386.0,19385.0,0.90188985]
[1664587275955,0.12458697,19386.0,19385.0,0.90188985]
[1664587277035,0.04558697,19386.0,19384.0,0.41137972]
[1664587277244,0.04558697,19386.0,19385.0,0.09993926]
[1664587277489,0.00834465,19386.0,19385.0,0.09993926]
[1664587277729,0.04558697,19386.0,19385.0,0.09993926]
[1664587277924,0.12358697,19386.0,19385.0,0.09993926]
[1664587278280,0.12358697,19386.0,19384.0,0.92311116]
[1664587278503,0.12358697,19386.0,19384.0,1.05914895]
[1664587278711,0.12358697,19386.0,19385.0,0.09993926]
[1664587279668,0.04558697,19386.0,19385.0,0.09993926]
[1664587279925,0.12358697,19386.0,19385.0,0.09993926]
[1664587280533,0.12358697,19386.0,19384.0,0.87311116]
[1664587280534,0.48115797,19386.0,19384.0,0.87311116]
[1664587280744,0.357571,19385.0,19384.0,0.87311116]
[1664587280995,0.12358697,19386.0,19384.0,0.87311116]
[1664587281203,0.04558697,19386.0,19384.0,0.87311116]
[1664587281443,0.04558697,19386.0,19385.0,0.6116707]
[1664587281628,0.04558697,19386.0,19385.0,0.91996144]
[1664587281789,0.12458697,19386.0,19385.0,0.91996144]
[1664587282860,0.12458697,19386.0,19385.0,0.6116707]
[1664587283076,0.04558697,19386.0,19385.0,0.6116707]
[1664587283295,0.04558697,19386.0,19385.0,0.73187294]
[1664587283960,0.12358697,19386.0,19385.0,0.78187294]
[1664587284184,0.12358697,19386.0,19385.0,0.6616707]
[1664587284430,0.12358697,19386.0,19385.0,0.6116707]
[1664587284645,0.12358697,19386.0,19385.0,0.6616707]
[1664587284894,0.12358697,19386.0,19385.0,0.7116707]
[1664587285116,0.04558697,19386.0,19385.0,0.6616707]
[1664587285340,0.04558697,19386.0,19385.0,0.7116707]
[1664587286008,0.04558697,19386.0,19384.0,0.23236272]
[1664587286009,0.3294263,19386.0,19384.0,0.23236272]
[1664587286288,0.357571,19385.0,19384.0,0.23236272]
[1664587286525,0.71381743,19385.0,19384.0,0.23236272]
[1664587287009,0.75105975,19385.0,19384.0,0.23236272]
[1664587287531,0.39348875,19385.0,19384.0,0.23236272]
[1664587287756,0.75105975,19385.0,19384.0,0.23236272]
[1664587287975,0.83005975,19385.0,19384.0,0.23236272]
[1664587288207,0.47248875,19385.0,19384.0,0.23236272]
[1664587288877,0.89603749,19385.0,19384.0,0.23236272]
[1664587289098,0.81703749,19385.0,19384.0,0.23236272]
[1664587290041,0.89603749,19385.0,19384.0,0.23236272]
[1664587290258,0.53846649,19385.0,19384.0,0.23236272]
[1664587290486,0.89603749,19385.0,19384.0,0.23236272]
[1664587291078,0.45946649,19385.0,19384.0,0.23236272]
[1664587291615,0.81703749,19385.0,19384.0,0.23236272]
[1664587291841,0.93635976,19385.0,19384.0,0.23236272]
[1664587292083,0.93635976,19385.0,19384.0,0.23225627]
[1664587292313,0.89603749,19385.0,19384.0,0.23225627]
[1664587292557,2.70442676,19385.0,19384.0,6.27e-06]
[1664587292780,2.418995,19385.0,19384.0,6.27e-06]
[1664587293001,2.3180784,19385.0,19384.0,6.27e-06]
[1664587293229,2.75080984,19385.0,19384.0,6.27e-06]
[1664587293460,2.90209423,19385.0,19384.0,6.27e-06]
[1664587293673,2.75080984,19385.0,19384.0,6.27e-06]
[1664587293935,2.19080984,19385.0,19384.0,6.27e-06]
[1664587294389,2.79080984,19385.0,19384.0,6.27e-06]
[1664587295286,2.75080984,19385.0,19384.0,6.27e-06]
[1664587295467,3.13448345,19385.0,19384.0,6.27e-06]
[1664587295930,3.27534923,19385.0,19384.0,6.27e-06]
[1664587296306,3.5767907,19385.0,19384.0,6.27e-06]
[1664587296728,3.27534923,19385.0,19384.0,6.27e-06]
[1664587297373,3.23534923,19385.0,19384.0,6.27e-06]
[1664587297864,3.27534923,19385.0,19384.0,6.27e-06]
[1664587298077,3.35601558,19385.0,19384.0,6.27e-06]
[1664587298504,3.08387467,19385.0,19384.0,6.27e-06]
[1664587298873,3.35666214,19385.0,19384.0,6.27e-06]
[1664587299092,3.31666214,19385.0,19384.0,6.27e-06]
[1664587299678,3.31637659,19385.0,19384.0,6.27e-06]
[1664587299899,5.373e-05,19383.0,19381.0,0.001]
[1664587300142,0.407571,19382.0,19381.0,0.001]
[1664587300719,0.407571,19382.0,19381.0,0.006]
[1664587301867,0.449571,19382.0,19381.0,0.006]
[1664587302536,0.45219948,19382.0,19381.0,0.006]
[1664587302747,0.4974248,19382.0,19381.0,0.006]
[1664587303224,0.4554248,19382.0,19381.0,0.006]
[1664587303915,0.4974248,19382.0,19381.0,0.006]
[1664587305105,0.4554248,19382.0,19381.0,0.006]
[1664587306036,0.4974248,19382.0,19381.0,0.006]
[1664587306946,0.05,19381.0,19380.0,0.001]
[1664587307169,0.45279095,19381.0,19380.0,0.001]
[1664587307656,2.03976695,19381.0,19380.0,0.001]
[1664587307889,0.83976695,19381.0,19380.0,0.001]
[1664587308120,0.91500927,19381.0,19380.0,0.001]
[1664587308607,0.43281332,19381.0,19380.0,0.05426]
[1664587308841,0.07524232,19381.0,19380.0,0.05426]
[1664587309066,0.07524232,19381.0,19380.0,0.36332984]
[1664587309323,0.07524232,19381.0,19380.0,0.05426]
[1664587309324,0.03724232,19381.0,19380.0,0.05426]
[1664587310017,0.08124232,19381.0,19380.0,0.05426]
[1664587310478,0.08124232,19381.0,19380.0,0.41332984]
[1664587310686,0.08124232,19381.0,19380.0,1.16511186]
[1664587310914,0.08124232,19381.0,19380.0,1.37310886]
[1664587311146,0.08124232,19381.0,19380.0,1.42310886]
[1664587311406,0.03724232,19381.0,19380.0,1.62146403]
[1664587312120,0.11624232,19381.0,19380.0,1.62146403]
[1664587313050,0.11624232,19381.0,19380.0,2.13745903]
[1664587313303,0.03724232,19381.0,19380.0,2.13745903]
[1664587313979,0.11624232,19381.0,19380.0,1.82838919]
[1664587314438,0.11624232,19381.0,19380.0,2.13745903]
[1664587314655,0.11624232,19381.0,19380.0,1.82838919]
[1664587315337,0.03724232,19381.0,19380.0,1.82838919]
[1664587315560,0.03724232,19381.0,19380.0,2.13745903]
[1664587315998,0.11524232,19381.0,19380.0,2.13745903]
[1664587316216,0.11524232,19381.0,19380.0,1.82838919]
[1664587316665,0.11524232,19381.0,19380.0,2.13745903]
[1664587317183,0.02324232,19381.0,19380.0,1.82838919]
[1664587317400,0.00262848,19382.0,19380.0,2.13529959]
[1664587317633,0.00262848,19382.0,19381.0,0.8140954]
[1664587317862,0.00262848,19382.0,19381.0,0.8640954]
[1664587318073,0.08162848,19382.0,19381.0,1.1710058]
[1664587318307,0.08162848,19382.0,19381.0,0.8640954]
[1664587318785,0.08162848,19382.0,19381.0,1.1710058]
[1664587319043,0.08162848,19382.0,19381.0,1.57305992]
[1664587319287,0.08162848,19382.0,19381.0,1.2348058]
[1664587319748,0.00262848,19382.0,19381.0,0.76415614]
[1664587319966,0.00262848,19382.0,19381.0,0.80315614]
[1664587320412,0.00262848,19382.0,19381.0,0.55073144]
[1664587321104,0.00262848,19382.0,19381.0,0.60073144]
[1664587321766,0.00262848,19382.0,19381.0,0.56173144]
[1664587321988,0.00262848,19382.0,19381.0,0.63473144]
[1664587323047,0.00262848,19382.0,19381.0,0.58473144]
[1664587323225,0.00262848,19382.0,19381.0,0.7483435]
[1664587323989,0.00262848,19382.0,19381.0,0.8213435]
[1664587324651,0.00262848,19382.0,19381.0,1.1282539]
[1664587324945,0.00262848,19382.0,19381.0,0.8213435]
[1664587325379,0.00262848,19382.0,19381.0,0.7483435]
[1664587326049,0.00262848,19382.0,19381.0,0.8213435]
[1664587327313,0.00262848,19382.0,19381.0,0.7483435]
[1664587327920,0.00262848,19382.0,19381.0,1.1282539]
[1664587328335,0.00262848,19382.0,19381.0,0.8213435]
[1664587329282,0.00262848,19382.0,19381.0,0.7483435]
[1664587329960,0.00262848,19382.0,19381.0,0.8213435]
[1664587331125,0.00262848,19382.0,19381.0,1.1282539]
[1664587331317,0.00262848,19382.0,19381.0,1.0552539]
[1664587331471,0.00262848,19382.0,19381.0,0.7483435]
[1664587332167,0.00262848,19382.0,19381.0,0.8213435]
[1664587333296,0.00262848,19382.0,19381.0,1.1282539]
[1664587333788,0.00262848,19382.0,19381.0,1.0552539]
[1664587334221,0.00262848,19382.0,19381.0,1.1282539]
[1664587334449,0.00262848,19382.0,19381.0,0.8213435]
[1664587334666,0.00262848,19382.0,19381.0,1.1282539]
[1664587335325,0.00262848,19382.0,19381.0,1.0552539]
[1664587336224,0.00262848,19382.0,19381.0,1.1282539]
[1664587336431,0.00262848,19382.0,19381.0,1.7282539]
[1664587336667,0.00262848,19382.0,19381.0,1.1282539]
[1664587337012,0.00262848,19382.0,19381.0,0.8213435]
[1664587337364,0.00262848,19382.0,19381.0,0.7483435]
[1664587338181,0.00262848,19382.0,19381.0,0.8253435]
[1664587339913,0.00262848,19382.0,19381.0,0.7483435]
[1664587340167,0.00262848,19382.0,19381.0,0.8253435]
[1664587340799,0.00253143,19382.0,19381.0,0.8253435]
[1664587341399,0.00253143,19382.0,19381.0,0.7483435]
[1664587342019,0.00253143,19382.0,19381.0,0.8253435]
[1664587342946,0.00253143,19382.0,19381.0,1.4253435]
[1664587343408,0.00253143,19382.0,19381.0,0.8253435]
[1664587343624,0.00253143,19382.0,19381.0,0.7483435]
[1664587344106,0.00253143,19382.0,19381.0,0.8093435]
[1664587344585,0.00253143,19382.0,19381.0,1.4093435]
[1664587344797,0.00253143,19382.0,19381.0,1.40927763]
[1664587345017,0.00253143,19382.0,19381.0,0.80927763]
[1664587345447,0.00253143,19382.0,19381.0,0.74827763]
[1664587346145,0.00253143,19382.0,19381.0,0.82727763]
[1664587346586,0.00253143,19382.0,19381.0,1.42727763]
[1664587347563,0.00253143,19382.0,19381.0,2.24827763]
[1664587348163,0.13137876,19385.0,19384.0,0.09993926]
[1664587348345,0.13137876,19385.0,19384.0,0.67166463]
[1664587348582,0.1691749,19385.0,19384.0,0.67166463]
[1664587350115,0.2361749,19385.0,19384.0,0.67166463]
[1664587350961,0.19837876,19385.0,19384.0,0.67166463]
[1664587351399,0.13137876,19385.0,19384.0,0.67166463]
[1664587351638,0.13137876,19385.0,19384.0,0.57172537]
[1664587352270,0.19837876,19385.0,19384.0,0.56173144]
[1664587353079,0.19837876,19385.0,19384.0,0.51173144]
[1664587353324,0.43804412,19385.0,19384.0,0.51173144]
[1664587353547,0.48894976,19385.0,19384.0,0.51173144]
[1664587354026,0.13137876,19385.0,19384.0,0.51173144]
[1664587354221,0.21037876,19385.0,19384.0,0.51173144]
[1664587355356,0.13137876,19385.0,19384.0,0.51173144]
[1664587356156,0.56794976,19385.0,19384.0,0.51173144]
[1664587356638,0.21037876,19385.0,19384.0,0.51173144]
[1664587357618,0.13137876,19385.0,19384.0,0.51173144]
[1664587358180,0.56794976,19385.0,19384.0,0.51173144]
[1664587358411,0.56794976,19385.0,19383.0,0.85256324]
[1664587358412,0.87461512,19385.0,19383.0,0.85256324]
[1664587358645,0.35666536,19384.0,19383.0,0.85256324]
[1664587358870,0.64591412,19385.0,19383.0,0.85256324]
[1664587359296,0.68525822,19385.0,19383.0,0.85256324]
[1664587359517,0.56691412,19385.0,19383.0,0.85256324]
[1664587360168,0.64591412,19385.0,19383.0,0.98154224]
[1664587360402,0.33924876,19385.0,19383.0,1.36851924]
[1664587360923,0.33924876,19385.0,19383.0,1.55696476]
[1664587361144,0.33924876,19385.0,19383.0,1.60696476]
[1664587361393,0.33924876,19385.0,19383.0,1.65696476]
[1664587361616,0.26024876,19385.0,19383.0,1.65696476]
[1664587361835,0.13137876,19385.0,19383.0,1.65696476]
[1664587362284,0.21037876,19385.0,19383.0,1.65696476]
[1664587363496,0.13137876,19385.0,19383.0,1.65696476]
[1664587363699,0.13137876,19385.0,19383.0,1.41851924]
[1664587363919,0.26024876,19385.0,19383.0,1.41851924]
[1664587364399,0.33924876,19385.0,19383.0,1.41851924]
[1664587364737,0.33924876,19385.0,19383.0,1.46851924]
[1664587364978,0.21037876,19385.0,19383.0,1.46851924]
[1664587365370,0.21037876,19385.0,19383.0,1.41851924]
[1664587365500,0.26024876,19385.0,19383.0,1.41851924]
[1664587366284,0.33924876,19385.0,19383.0,1.41851924]
[1664587366463,0.33924876,19385.0,19383.0,1.46851924]
[1664587366686,0.21037876,19385.0,19383.0,1.46851924]
[1664587367363,0.13137876,19385.0,19383.0,1.46851924]
[1664587367580,0.13137876,19385.0,19383.0,1.66696476]
[1664587368241,0.21037876,19385.0,19383.0,1.66696476]
[1664587368949,0.21037876,19385.0,19383.0,1.46851924]
[1664587369169,0.357571,19384.0,19383.0,0.9567878]
[1664587369387,0.13137876,19385.0,19383.0,1.98442924]
[1664587369614,0.13137876,19385.0,19384.0,0.51173144]
[1664587370109,0.13137876,19385.0,19384.0,0.71017436]
[1664587370344,0.21037876,19385.0,19384.0,0.71017436]
[1664587372096,0.13137876,19385.0,19384.0,0.71017436]
[1664587372283,0.21037876,19385.0,19384.0,0.71017436]
[1664587373424,0.13137876,19385.0,19384.0,0.71017436]
[1664587374206,0.21037876,19385.0,19384.0,0.71017436]
[1664587375464,0.13137876,19385.0,19384.0,0.71017436]
[1664587376264,0.21037876,19385.0,19384.0,0.71017436]
[1664587377544,0.13137876,19385.0,19384.0,0.71017436]
[1664587377784,0.00241274,19385.0,19384.0,0.71017436]
[1664587377923,0.00241274,19385.0,19384.0,1.71297936]
[1664587378369,0.06241274,19385.0,19384.0,1.71297936]
[1664587379515,0.00241274,19385.0,19384.0,1.71297936]
[1664587379760,0.00241274,19385.0,19384.0,1.66297936]
[1664587379976,0.00241274,19385.0,19384.0,1.41453644]
[1664587380224,0.00241274,19385.0,19384.0,0.89864744]
[1664587380424,0.06241274,19385.0,19384.0,0.89864744]
[1664587381171,0.7266491,19385.0,19384.0,0.89864744]
[1664587381392,0.06241274,19385.0,19384.0,0.89864744]
[1664587381614,0.06241274,19385.0,19384.0,0.64070344]
[1664587381942,0.00241274,19385.0,19384.0,0.64070344]
[1664587382567,0.06241274,19385.0,19384.0,0.89864744]
[1664587382776,0.06241274,19385.0,19384.0,0.94864744]
[1664587383144,0.06241274,19385.0,19384.0,0.99864744]
[1664587383736,0.00241274,19385.0,19384.0,0.89864744]
[1664587384308,0.06241274,19385.0,19384.0,0.94864744]
[1664587384574,0.06241274,19385.0,19384.0,1.70956666]
[1664587385701,0.00241274,19385.0,19384.0,1.70956666]
[1664587386484,0.06241274,19385.0,19384.0,1.70956666]
[1664587387136,0.06241274,19385.0,19384.0,1.75956666]
[1664587387802,0.00241274,19385.0,19384.0,1.75956666]
[1664587388452,0.05041274,19385.0,19384.0,1.75956666]
[1664587390107,0.00241274,19385.0,19384.0,1.70956666]
[1664587390347,0.05241274,19385.0,19384.0,1.70956666]
[1664587391702,0.00241274,19385.0,19384.0,1.70956666]
[1664587392352,0.05241274,19385.0,19384.0,1.70956666]
[1664587393668,0.00241274,19385.0,19384.0,1.70956666]
[1664587394335,0.05241274,19385.0,19384.0,1.70956666]
[1664587395628,0.00241274,19385.0,19384.0,1.70956666]
[1664587396566,0.05241274,19385.0,19384.0,1.70956666]
[1664587397555,0.00241274,19385.0,19384.0,1.70956666]
[1664587397996,0.00241274,19385.0,19384.0,1.75956666]
[1664587398431,0.05241274,19385.0,19384.0,1.75956666]
[1664587399531,0.00241274,19385.0,19384.0,1.75956666]
[1664587400430,0.05241274,19385.0,19384.0,1.75956666]
[1664587401656,0.00241274,19385.0,19384.0,1.75956666]
[1664587402539,0.05241274,19385.0,19384.0,1.75956666]
[1664587403650,0.00241274,19385.0,19384.0,1.75956666]
[1664587404485,0.05241274,19385.0,19384.0,1.75956666]
[1664587404931,0.05241274,19385.0,19384.0,1.70956666]
[1664587405527,0.00241274,19385.0,19384.0,1.70956666]
[1664587406596,0.05241274,19385.0,19384.0,1.70956666]
[1664587407636,0.00241274,19385.0,19384.0,1.70956666]
[1664587408512,0.05241274,19385.0,19384.0,1.70956666]
[1664587409544,0.05241274,19385.0,19384.0,1.46453644]
[1664587410197,0.00241274,19385.0,19384.0,1.46453644]
[1664587410416,0.05241274,19385.0,19384.0,1.46453644]
[1664587411163,0.05241274,19385.0,19384.0,1.51453644]
[1664587411577,0.00241274,19385.0,19384.0,1.51453644]
[1664587412579,0.05241274,19385.0,19384.0,1.51453644]
[1664587413126,0.05241274,19385.0,19384.0,1.77746836]
[1664587413814,0.00241274,19385.0,19384.0,1.77746836]
[1664587414382,0.00841274,19385.0,19384.0,1.83846836]
[1664587415675,0.00241274,19385.0,19384.0,1.77746836]
[1664587416632,0.00841274,19385.0,19384.0,1.83846836]
[1664587416859,0.00841274,19385.0,19384.0,2.43846836]
[1664587417119,0.10085405,19390.0,19387.0,0.09993926]
[1664587417364,0.25,19391.0,19389.0,0.6754707]
[1664587417601,0.19637452,19393.0,19390.0,2.717849]
[1664587417819,0.19637452,19393.0,19392.0,0.21373926]
[1664587418038,0.19637452,19393.0,19392.0,1.0826157]
[1664587418518,0.19637452,19393.0,19392.0,1.2115347]
[1664587418796,0.19637452,19393.0,19392.0,0.9043897]
[1664587419020,0.19637452,19393.0,19392.0,1.8115347]
[1664587419247,0.19637452,19393.0,19392.0,1.41847327]
[1664587420190,0.19637452,19393.0,19392.0,2.01847327]
[1664587420656,0.128793,19397.0,19392.0,2.05069409]
[1664587420885,0.26326872,19395.0,19394.0,0.05]
[1664587421121,0.26326872,19395.0,19394.0,1.19178341]
[1664587421336,0.26326872,19395.0,19394.0,1.79178341]
[1664587421567,0.26326872,19395.0,19394.0,1.19178341]
[1664587422052,0.26326872,19395.0,19394.0,1.27135441]
[1664587422569,0.26326872,19395.0,19394.0,1.28435441]
[1664587422805,0.26326872,19395.0,19394.0,1.23435441]
[1664587423258,0.26326872,19395.0,19394.0,1.28435441]
[1664587423481,0.26326872,19395.0,19394.0,1.59149941]
[1664587423708,0.26326872,19395.0,19394.0,1.57849941]
[1664587424593,0.26326872,19395.0,19394.0,1.28635441]
[1664587425190,0.26326872,19395.0,19394.0,1.59349941]
[1664587425408,0.26326872,19395.0,19394.0,1.28635441]
[1664587425627,0.26326872,19395.0,19394.0,1.27135441]
[1664587425870,0.26326872,19395.0,19394.0,1.57849941]
[1664587426060,0.26326872,19395.0,19394.0,1.27135441]
[1664587426578,0.26326872,19395.0,19394.0,1.28835441]
[1664587427928,0.26326872,19395.0,19394.0,1.27135441]
[1664587428621,0.26326872,19395.0,19394.0,1.28835441]
[1664587430216,0.26326872,19395.0,19394.0,1.27135441]
[1664587430467,0.26326872,19395.0,19394.0,1.28835441]
[1664587431818,0.26326872,19395.0,19394.0,1.27135441]
[1664587432047,0.26326872,19395.0,19394.0,2.17849941]
[1664587432507,0.26326872,19395.0,19394.0,2.18949941]
[1664587433929,0.128793,19397.0,19394.0,2.18949941]
[1664587433930,0.35940902,19397.0,19394.0,2.20172023]
[1664587434166,0.35940902,19397.0,19396.0,0.25633926]
[1664587434387,0.35940902,19397.0,19396.0,1.0752157]
[1664587434823,0.35940902,19397.0,19396.0,0.7680707]
[1664587435074,0.35940902,19397.0,19396.0,1.0752157]
[1664587435298,0.35940902,19397.0,19396.0,0.7680707]
[1664587435519,0.35940902,19397.0,19396.0,1.04987777]
[1664587436551,0.35940902,19397.0,19396.0,1.06487777]
[1664587437801,0.35940902,19397.0,19396.0,1.04987777]
[1664587438683,0.35940902,19397.0,19396.0,1.06487777]
[1664587439116,0.23061602,19397.0,19396.0,1.06487777]
[1664587439334,0.23061602,19397.0,19396.0,2.01712477]
[1664587440235,0.88365878,19397.0,19396.0,2.00212477]
[1664587440424,0.88354825,19397.0,19396.0,2.00212477]
[1664587440647,0.88354825,19397.0,19396.0,2.01712477]
[1664587440830,0.88354825,19397.0,19396.0,1.7353177]
[1664587441791,0.88354825,19397.0,19396.0,1.7203177]
[1664587442025,0.88354825,19397.0,19396.0,1.71713618]
[1664587442253,0.88354825,19397.0,19396.0,1.61719692]
[1664587442467,0.88354825,19397.0,19396.0,1.57459692]
[1664587442663,0.88354825,19397.0,19396.0,1.58759692]
[1664587443337,0.88354825,19397.0,19396.0,1.82370241]
[1664587443785,0.88354825,19397.0,19396.0,1.81070241]
[1664587444679,0.88354825,19397.0,19396.0,1.82370241]
[1664587445786,0.88354825,19397.0,19396.0,1.81070241]
[1664587446180,0.88354825,19397.0,19396.0,2.11784741]
[1664587446400,0.88354825,19397.0,19396.0,1.81070241]
[1664587446646,0.88354825,19397.0,19396.0,1.82370241]
[1664587447789,0.88354825,19397.0,19396.0,2.41070241]
[1664587448041,0.88354825,19397.0,19396.0,1.81070241]
[1664587448616,0.88354825,19397.0,19396.0,1.82570241]
[1664587449295,0.88354825,19397.0,19396.0,2.42570241]
[1664587449505,0.88354825,19397.0,19396.0,3.89066654]
[1664587449506,0.65304276,19397.0,19396.0,3.89066654]
[1664587449823,0.65304276,19397.0,19396.0,6.89888736]
[1664587450026,0.65304276,19397.0,19396.0,8.89888736]
[1664587450236,0.19735501,19400.0,19398.0,0.09993926]
[1664587450472,0.19735501,19400.0,19399.0,1.20045117]
[1664587450700,0.19735501,19400.0,19399.0,3.82367199]
[1664587450911,0.20235501,19400.0,19399.0,1.82355311]
[1664587452479,0.20235501,19400.0,19399.0,1.84555311]
[1664587452946,0.20235501,19400.0,19399.0,0.93840811]
[1664587453384,0.20235501,19400.0,19399.0,1.53840811]
[1664587453594,0.20235501,19400.0,19399.0,1.24858859]
[1664587453803,0.20235501,19400.0,19399.0,1.82658859]
[1664587454577,0.20235501,19400.0,19399.0,1.85158859]
[1664587455970,0.20235501,19400.0,19399.0,1.82658859]
[1664587456700,0.20235501,19400.0,19399.0,1.85158859]
[1664587457781,0.20235501,19400.0,19399.0,1.82658859]
[1664587458558,0.20235501,19400.0,19399.0,5.85158859]
[1664587458773,0.20235501,19400.0,19399.0,6.85158859]
[1664587460392,0.20235501,19400.0,19399.0,6.82658859]
[1664587460610,0.20235501,19400.0,19399.0,6.85258859]
[1664587462000,0.20235501,19400.0,19399.0,6.82658859]
[1664587462688,0.007,19400.0,19399.0,6.85558859]
[1664587463840,0.007,19400.0,19399.0,6.82658859]
[1664587464776,0.007,19400.0,19399.0,6.85558859]
[1664587465922,0.007,19400.0,19399.0,6.82658859]
[1664587466172,0.007,19400.0,19399.0,6.80336777]
[1664587466608,0.007,19400.0,19399.0,6.83236777]
[1664587468008,0.007,19400.0,19399.0,6.80336777]
[1664587468756,0.007,19400.0,19399.0,6.85558859]
[1664587470331,0.007,19400.0,19399.0,6.82658859]
[1664587470686,0.007,19400.0,19399.0,6.85558859]
[1664587472054,0.007,19400.0,19399.0,6.82658859]
[1664587472701,0.007,19400.0,19399.0,6.85558859]
[1664587473152,0.0068807,19400.0,19399.0,6.85558859]
[1664587473996,0.0068807,19400.0,19399.0,6.82658859]
[1664587474696,0.0068807,19400.0,19399.0,5.92218729]
[1664587474910,0.0068807,19400.0,19399.0,6.83236777]
[1664587475127,0.1139907,19400.0,19399.0,0.60453144]
[1664587475374,0.1139907,19400.0,19399.0,0.54073144]
[1664587475604,0.1139907,19400.0,19399.0,0.53598495]
[1664587476352,0.1139907,19400.0,19399.0,0.50698495]
[1664587476573,0.0068807,19400.0,19399.0,0.60698495]
[1664587476787,0.0068807,19400.0,19399.0,0.63598495]
[1664587477217,0.0448624,19400.0,19399.0,0.63598495]
[1664587477434,0.0068807,19400.0,19399.0,0.63598495]
[1664587477896,0.0068807,19400.0,19399.0,0.60698495]
[1664587478799,0.0068807,19400.0,19399.0,0.63098495]
[1664587479040,0.0068807,19400.0,19399.0,0.58098495]
[1664587479750,0.0068807,19400.0,19399.0,0.63098495]
[1664587479965,0.0068807,19400.0,19399.0,0.83762775]
[1664587480782,0.0068807,19400.0,19399.0,0.62698495]
[1664587481826,0.0068807,19400.0,19399.0,0.57698495]
[1664587482065,0.1139907,19400.0,19399.0,0.50698495]
[1664587482487,0.0068807,19400.0,19399.0,0.50698495]
[1664587482745,0.0068807,19400.0,19399.0,6.81416705]
[1664587482980,0.0068807,19400.0,19399.0,7.02325144]
[1664587483214,0.0068807,19400.0,19399.0,7.00003062]
[1664587483429,0.0068807,19400.0,19399.0,7.90003062]
[1664587484090,0.0068807,19400.0,19399.0,7.88403062]
[1664587484793,0.0068807,19400.0,19399.0,7.91943062]
[1664587485030,0.0068807,19400.0,19399.0,7.01943062]
[1664587485474,0.0068807,19400.0,19399.0,7.91943062]
[1664587485705,7e-07,19400.0,19399.0,8.25745634]
[1664587485924,0.002,19403.0,19402.0,0.09993926]
[1664587486148,0.002,19403.0,19402.0,1.42720893]
[1664587486647,0.002,19403.0,19402.0,0.82720893]
[1664587486898,0.002,19403.0,19402.0,3.77455653]
[1664587487106,0.002,19403.0,19402.0,5.77455653]
[1664587487330,0.002,19403.0,19402.0,6.77455653]
[1664587487976,0.002,19403.0,19402.0,6.76055653]
[1664587488922,0.00190268,19403.0,19402.0,6.79255653]
[1664587490583,0.00190268,19403.0,19402.0,6.76055653]
[1664587490839,0.00190268,19403.0,19402.0,6.79555653]
[1664587492020,0.00190268,19403.0,19402.0,6.76055653]
[1664587492758,0.00190268,19403.0,19402.0,6.80055653]
[1664587494050,0.00190268,19403.0,19402.0,6.76055653]
[1664587494722,0.00190268,19403.0,19402.0,6.80055653]
[1664587495936,0.00190268,19403.0,19402.0,6.76055653]
[1664587496764,0.00190268,19403.0,19402.0,6.80055653]
[1664587497745,0.00190268,19403.0,19402.0,2.33223163]
[1664587497746,0.43179815,19403.0,19402.0,2.33223163]
[1664587497984,1.62196501,19403.0,19402.0,0.0007]
[1664587498205,0.51243561,19401.0,19395.0,0.35248908]
[1664587498459,0.51243561,19401.0,19395.0,0.1]
[1664587498460,0.05,19396.0,19395.0,0.1]
[1664587498693,0.37086442,19396.0,19395.0,0.1]
[1664587498932,0.97036119,19396.0,19395.0,0.02]
[1664587499385,0.08708644,19396.0,19395.0,0.02]
[1664587499619,0.05,19396.0,19395.0,0.02]
[1664587500078,0.407571,19396.0,19393.0,0.25324134]
[1664587500308,0.32086442,19398.0,19394.0,0.51173144]
[1664587500537,0.38965744,19397.0,19394.0,0.51173144]
[1664587500762,0.38965744,19397.0,19394.0,0.52773144]